bitfinex/quotes_ETHUSD_20251201
["timestamp","ask_amount","ask_price","bid_price","bid_amount"]
[1764550016759,0.03495052,2860.4,2859.8,0.1785]
[1764550016968,0.76054463,2860.4,2859.5,0.1785]
[1764550017131,1.25084463,2860.4,2859.5,0.1785]
[1764550017472,0.4903,2860.3,2859.5,0.1785]
[1764550017786,0.03495052,2860.2,2859.5,0.6724]
[1764550018087,0.03495052,2860.3,2859.6,0.03496992]
[1764550018242,0.03495052,2860.3,2859.5,0.1785]
[1764550018441,0.03495052,2860.3,2859.5,0.6724]
[1764550018674,6.992518,2860.2,2859.5,0.6724]
[1764550018970,6.992518,2860.2,2859.5,0.1785]
[1764550018971,0.03495052,2860.1,2859.5,0.1785]
[1764550019188,0.03495052,2860.1,2859.6,0.4939]
[1764550019833,0.03495052,2860.1,2860.0,0.001]
[1764550020032,0.72559411,2860.8,2860.0,0.001]
[1764550020344,6.51576942,2862.0,2860.1,0.4939]
[1764550020345,0.002,2860.6,2860.1,0.4939]
[1764550020537,0.002,2860.6,2860.0,0.001]
[1764550021177,0.4574,2860.1,2860.0,0.001]
[1764550021528,0.9477,2860.1,2860.0,0.001]
[1764550021773,1.0477,2860.1,2860.0,0.001]
[1764550021938,5.57157011,2860.1,2860.0,0.001]
[1764550022136,6.56176005,2860.1,2860.0,0.001]
[1764550022340,6.56176005,2860.1,2858.6,0.21279276]
[1764550022543,3.68259353,2858.7,2858.6,0.21279276]
[1764550022906,3.49809353,2858.7,2858.6,0.21279276]
[1764550023542,3.49784882,2858.9,2858.6,0.21279276]
[1764550023759,0.53608488,2858.9,2858.6,0.21279276]
[1764550023932,0.4903,2858.8,2858.6,0.21279276]
[1764550024341,0.1863,2858.9,2858.6,0.21279276]
[1764550024542,0.4903,2859.2,2858.7,0.4939]
[1764550024543,6.99496362,2859.2,2858.7,0.4939]
[1764550024774,10.49244543,2859.2,2858.6,0.21279276]
[1764550024984,6.99496362,2859.2,2858.6,0.21279276]
[1764550025277,0.1863,2859.0,2858.6,0.21279276]
[1764550025464,0.237,2859.1,2858.6,0.21279276]
[1764550025650,0.72559411,2859.8,2858.6,0.21279276]
[1764550025651,0.1863,2859.6,2858.6,0.21279276]
[1764550025851,0.237,2859.7,2858.7,0.4939]
[1764550026554,10.49097774,2859.6,2858.7,0.4939]
[1764550026771,6.99398516,2859.6,2858.7,0.4939]
[1764550026967,3.49690919,2859.7,2859.5,0.1785]
[1764550027167,18.31536532,2860.2,2858.8,0.4939]
[1764550027385,0.72559411,2860.1,2858.8,0.4939]
[1764550027549,14.475336,2860.2,2858.8,4.82422932]
[1764550027550,3.496259,2860.2,2858.8,4.82422932]
[1764550027750,0.002,2860.6,2858.8,4.82422932]
[1764550027751,3.49778473,2860.6,2860.1,0.1785]
[1764550028079,3.49778473,2860.6,2859.9,0.1785]
[1764550028080,10.48933957,2860.6,2859.9,0.1785]
[1764550028649,10.48933957,2860.6,2859.0,0.1785]
[1764550028650,0.4903,2860.5,2859.0,0.1785]
[1764550028851,0.1,2860.1,2859.0,0.1785]
[1764550029050,0.8545587,2860.0,2859.0,0.1785]
[1764550029253,0.237,2860.2,2859.0,0.6724]
[1764550029663,0.237,2860.2,2859.1,0.4939]
[1764550029863,0.7273,2860.2,2859.0,0.1785]
[1764550030049,0.1,2860.1,2859.0,0.1785]
[1764550030252,0.4903,2860.1,2859.0,0.1785]
[1764550030579,0.72559411,2860.0,2859.1,0.4939]
[1764550031284,0.1863,2859.9,2859.0,0.1785]
[1764550031783,0.72559411,2860.0,2859.0,0.6724]
[1764550031969,0.72559411,2860.0,2859.1,0.03497604]
[1764550032289,0.72559411,2860.0,2859.1,0.52887604]
[1764550032502,0.72559411,2860.0,2858.6,3.71099882]
[1764550032503,0.6766,2859.9,2858.6,0.21279276]
[1764550032663,10.49024406,2859.8,2859.1,0.1785]
[1764550032871,13.98699208,2859.8,2859.1,0.1785]
[1764550033198,10.49024406,2859.8,2859.1,0.6724]
[1764550033351,6.99349604,2859.8,2859.1,0.6724]
[1764550033660,0.237,2860.2,2859.2,0.4939]
[1764550033661,3.49638124,2860.1,2859.2,0.4939]
[1764550033860,0.72559411,2860.0,2859.2,0.4939]
[1764550034218,3.49638124,2860.1,2859.2,0.4939]
[1764550034490,3.49589232,2860.5,2859.2,0.4939]
[1764550034696,0.4903,2861.0,2859.1,0.1785]
[1764550034697,0.237,2860.7,2859.3,0.4939]
[1764550035408,0.72559411,2860.8,2859.3,0.4939]
[1764550035907,0.237,2860.7,2859.4,0.4939]
[1764550036255,3.49540354,2860.9,2860.5,0.1785]
[1764550036456,3.49474268,2861.5,2860.5,0.1785]
[1764550036705,0.1863,2862.0,2860.5,4.16827714]
[1764550036706,3.49406009,2862.0,2860.5,4.16827714]
[1764550037069,3.49406009,2862.0,2860.6,0.4939]
[1764550037311,3.49598051,2862.1,2860.7,0.41682771]
[1764550037312,0.69900406,2861.9,2860.7,0.41682771]
[1764550037479,0.002,2862.1,2860.7,0.41682771]
[1764550037668,0.002,2862.1,2861.0,4.33032932]
[1764550038175,0.002,2862.1,2861.1,0.4939]
[1764550038783,0.4923,2862.1,2860.5,0.6724]
[1764550038984,1.21789411,2862.1,2860.6,0.4939]
[1764550039273,0.1,2861.7,2860.5,0.1785]
[1764550039482,12.763785,2861.3,2859.9,0.1643]
[1764550039695,0.72559411,2861.7,2860.0,0.4939]
[1764550039696,0.002,2860.7,2860.0,0.4939]
[1764550040202,0.002,2860.7,2860.6,0.1785]
[1764550040901,0.002,2860.7,2860.4,0.1785]
[1764550041699,0.002,2860.7,2860.0,0.4939]
[1764550041902,0.002,2860.7,2859.9,0.1643]
[1764550042202,0.4923,2860.7,2859.2,0.4939]
[1764550042377,0.405504,2860.6,2859.3,0.03497359]
[1764550042578,17.47885055,2860.6,2859.2,0.4939]
[1764550042791,1.21069411,2860.5,2858.8,0.6482]
[1764550042995,0.1,2860.3,2858.8,0.6482]
[1764550043309,0.237,2860.2,2859.2,0.21347481]
[1764550043473,0.347,2859.4,2859.2,0.1785]
[1764550043673,0.237,2860.2,2859.3,0.4697]
[1764550043917,0.347,2859.7,2859.3,0.4697]
[1764550044214,0.347,2859.3,2859.2,0.1785]
[1764550044604,0.347,2859.3,2859.2,0.6309]
[1764550044807,0.347,2859.6,2859.2,0.6309]
[1764550044974,0.347,2859.6,2859.3,0.4524]
[1764550045173,6.99276248,2860.1,2859.3,0.4524]
[1764550045537,0.347,2860.0,2859.3,0.4524]
[1764550045686,6.99276248,2860.1,2859.2,0.1785]
[1764550045687,0.347,2859.5,2859.2,0.1785]
[1764550045867,10.48914372,2860.1,2858.9,0.4524]
[1764550045868,1.18759411,2860.0,2858.9,0.4524]
[1764550046067,1.18759411,2860.0,2858.8,0.1785]
[1764550046068,0.1935,2859.8,2858.8,0.1785]
[1764550046304,0.347,2858.9,2858.8,0.1785]
[1764550046503,0.6555,2859.8,2858.6,0.21379276]
[1764550046672,3.84509353,2858.7,2858.6,0.21379276]
[1764550046871,3.84509353,2858.7,2858.6,1e-08]
[1764550046872,5.3049937,2858.7,2858.6,1e-08]
[1764550047078,9.9305227,2858.7,2858.6,1e-08]
[1764550047305,7.9694307,2858.7,2858.6,1e-08]
[1764550047503,6.1724977,2858.7,2858.6,1e-08]
[1764550047673,10.8490917,2858.7,2858.6,1e-08]
[1764550047868,11.1140687,2858.7,2858.6,1e-08]
[1764550048117,9.5105457,2858.7,2858.6,1e-08]
[1764550048317,7.8771407,2858.7,2858.6,1e-08]
[1764550048473,8.2826447,2858.7,2858.6,1e-08]
[1764550048673,8.3826447,2858.7,2858.6,1e-08]
[1764550049092,7.9771407,2858.7,2858.6,1e-08]
[1764550049314,7.9771407,2858.7,2857.1,0.1785]
[1764550049315,0.347,2858.1,2858.0,1e-08]
[1764550049514,0.809,2858.1,2858.0,1e-08]
[1764550049729,0.347,2858.1,2858.0,1e-08]
[1764550050742,8.21494189,2858.1,2858.0,1e-08]
[1764550050907,14.88922903,2858.1,2858.0,1e-08]
[1764550051304,14.88922903,2858.1,2855.6,4.33032932]
[1764550051305,0.1829,2855.9,2853.6,2.478899]
[1764550051534,0.237,2855.8,2853.6,2.478899]
[1764550051838,12.88154911,2855.1,2853.6,2.478899]
[1764550052012,0.72559411,2855.1,2853.7,0.03504222]
[1764550052211,1.53459411,2855.1,2853.7,0.03504222]
[1764550052415,0.347,2855.1,2854.7,0.1785]
[1764550052733,0.347,2855.1,2854.0,0.4524]
[1764550052977,15.6523274,2855.1,2854.1,0.03503731]
[1764550053125,7.3620784,2855.1,2855.0,1e-08]
[1764550053439,7.3620784,2855.1,2853.6,2.478899]
[1764550053440,0.347,2853.7,2853.6,2.478899]
[1764550053640,0.347,2853.7,2853.6,2.51394245]
[1764550053938,3.50201365,2855.5,2853.6,5.98321288]
[1764550054111,0.418,2855.6,2853.7,1.06715129]
[1764550054319,0.72559411,2855.5,2853.7,1.06715129]
[1764550054525,0.347,2854.7,2853.8,0.4524]
[1764550054857,0.347,2855.3,2853.9,4.11318689]
[1764550055011,0.347,2854.7,2854.0,0.4524]
[1764550055208,7.42179905,2855.6,2854.0,0.4524]
[1764550055209,0.418,2855.6,2854.1,0.8419937]
[1764550055405,0.18,2855.6,2855.5,0.1785]
[1764550055609,0.347,2855.2,2854.5,0.0350324]
[1764550055829,0.347,2855.0,2854.2,0.6309]
[1764550056013,0.347,2854.7,2854.2,0.6309]
[1764550056217,0.347,2854.4,2854.3,0.03503485]
[1764550056434,0.347,2855.1,2854.3,0.48743485]
[1764550056645,0.18,2855.6,2854.3,0.4524]
[1764550056849,0.18,2855.6,2854.4,3.53839685]
[1764550057049,0.347,2855.5,2854.5,0.74942216]
[1764550057345,7.00231076,2856.2,2854.6,0.03503117]
[1764550057651,0.1935,2856.6,2854.6,0.4524]
[1764550057652,0.347,2855.6,2854.6,0.4524]
[1764550057945,0.347,2855.6,2854.7,0.03502995]
[1764550058154,0.347,2856.0,2854.8,0.644504]
[1764550058319,0.347,2856.2,2855.1,4.11318689]
[1764550058514,0.347,2856.4,2855.2,0.41131869]
[1764550058830,0.347,2856.5,2855.3,7.0045179]
[1764550059344,0.347,2856.5,2855.4,0.4524]
[1764550059546,1.6686067,2856.8,2855.6,4.11318689]
[1764550059721,0.347,2856.6,2855.7,0.64931869]
[1764550059916,0.347,2856.9,2855.7,1.10171869]
[1764550060124,0.347,2856.9,2855.8,0.48741645]
[1764550060327,0.347,2856.9,2855.8,0.6309]
[1764550060618,0.462,2857.4,2855.9,0.4524]
[1764550060948,0.72559411,2856.1,2854.9,0.1707]
[1764550061245,0.347,2855.1,2854.9,0.1707]
[1764550061445,0.347,2855.1,2855.0,0.48742626]
[1764550061649,0.462,2856.0,2854.9,0.1707]
[1764550061841,0.347,2855.0,2854.9,0.1707]
[1764550062239,14.00462152,2856.2,2854.3,0.001]
[1764550062240,0.462,2855.3,2854.3,0.001]
[1764550062440,0.347,2855.1,2854.4,0.4524]
[1764550062772,0.347,2855.2,2854.5,0.0350324]
[1764550063055,3.50194805,2855.6,2854.5,0.0350324]
[1764550063056,0.347,2855.1,2854.5,0.0350324]
[1764550063214,0.72559411,2855.5,2854.6,0.6231]
[1764550063414,0.347,2855.4,2854.6,0.6231]
[1764550063653,0.347,2855.9,2854.7,0.48742995]
[1764550063823,7.00182046,2856.4,2854.7,0.4524]
[1764550063824,10.50273069,2856.4,2854.7,0.4524]
[1764550064015,0.347,2855.7,2854.7,0.4524]
[1764550064215,0.462,2856.3,2854.7,0.4524]
[1764550064418,0.347,2855.0,2854.7,0.4524]
[1764550064820,7.0054993,2854.9,2854.3,0.001]
[1764550065017,0.347,2854.4,2854.3,0.001]
[1764550065463,0.462,2855.2,2854.3,0.001]
[1764550065464,0.347,2855.4,2854.3,0.4534]
[1764550065751,0.1935,2855.9,2854.3,3.95681282]
[1764550065752,0.347,2855.1,2854.3,3.95681282]
[1764550065954,3.69463865,2856.3,2855.5,0.1707]
[1764550066152,3.69463865,2856.3,2854.8,0.4524]
[1764550066153,7.00217145,2856.3,2854.8,0.4524]
[1764550066451,7.00217145,2856.3,2854.4,0.39568128]
[1764550066452,0.347,2855.3,2854.4,0.84808128]
[1764550066651,0.347,2855.3,2854.5,0.0350324]
[1764550066853,0.347,2855.3,2855.2,0.1207]
[1764550067065,0.347,2855.6,2855.2,0.1207]
[1764550067423,0.462,2856.6,2855.3,0.4524]
[1764550067424,0.347,2855.9,2855.3,0.4524]
[1764550067675,0.462,2857.1,2855.3,0.48742258]
[1764550067676,0.347,2856.2,2855.3,0.48742258]
[1764550067831,0.347,2856.5,2855.4,0.76128335]
[1764550068153,6.99863526,2857.7,2855.6,4.11318689]
[1764550068454,0.347,2857.2,2855.8,0.32864066]
[1764550068821,0.347,2857.7,2856.4,10.50273069]
[1764550069085,1.64689482,2858.0,2856.6,4.163098]
[1764550069380,1.64689482,2858.0,2856.5,1.28927307]
[1764550069381,5.14586392,2858.0,2856.5,1.50267307]
[1764550069676,8.64483302,2858.0,2856.6,0.4524]
[1764550069880,0.347,2857.5,2856.6,0.4524]
[1764550070173,15.64277122,2858.0,2856.6,0.4524]
[1764550070174,0.347,2857.6,2856.6,0.4524]
[1764550070322,8.64483302,2858.0,2856.6,0.4524]
[1764550070518,8.64483302,2858.0,2856.1,0.4524]
[1764550070519,0.347,2857.1,2856.1,0.4524]
[1764550070950,1.18759411,2857.9,2856.1,0.4524]
[1764550070951,0.91909411,2857.7,2856.1,0.4524]
[1764550071255,0.91909411,2857.7,2856.2,3.50115538]
[1764550071256,0.347,2857.1,2856.2,3.50115538]
[1764550071458,0.91909411,2857.7,2856.2,3.50115538]
[1764550071459,0.347,2857.3,2856.2,7.00231076]
[1764550071659,0.347,2857.3,2856.3,1.19787108]
[1764550071865,0.347,2857.8,2856.4,0.4524]
[1764550072166,1.64689482,2858.0,2856.5,0.239]
[1764550072167,0.347,2857.5,2856.5,0.239]
[1764550072556,0.72559411,2857.9,2856.6,0.4524]
[1764550072739,1.22459411,2857.9,2856.6,0.4524]
[1764550072931,0.347,2857.3,2856.6,0.4524]
[1764550073153,0.347,2857.0,2856.6,0.4524]
[1764550073463,0.347,2856.7,2856.2,0.03501155]
[1764550073765,0.499,2857.6,2856.2,0.03501155]
[1764550073766,1.16866022,2857.6,2856.2,0.03501155]
[1764550073964,0.347,2857.1,2856.3,0.452]
[1764550074968,3.500175,2857.0,2856.3,0.452]
[1764550075515,0.347,2857.1,2856.3,0.452]
[1764550075674,0.347,2857.1,2856.3,0.8473133]
[1764550075835,0.347,2857.1,2856.4,0.452]
[1764550076040,0.347,2857.5,2856.4,0.452]
[1764550076237,0.6723783,2857.8,2856.4,0.452]
[1764550076468,7.81000603,2859.1,2856.6,0.32864066]
[1764550076469,0.347,2858.1,2856.6,0.32864066]
[1764550076635,0.347,2857.9,2856.6,0.32864066]
[1764550076834,0.238,2859.1,2856.7,0.452]
[1764550077037,3.49776562,2859.0,2857.9,0.1714]
[1764550077340,1.64889482,2858.0,2857.9,0.1714]
[1764550077669,0.002,2858.0,2857.9,4.12247274]
[1764550077975,0.002,2858.0,2857.9,4.88463993]
[1764550078350,0.002,2858.6,2858.1,0.32864066]
[1764550078683,0.002,2858.6,2858.0,0.452]
[1764550079040,0.002,2858.6,2858.1,3.49882789]
[1764550079460,0.002,2858.6,2858.2,0.452]
[1764550079790,0.002,2858.6,2858.3,0.98296558]
[1764550079964,0.002,2858.6,2858.3,0.238]
[1764550080158,0.002,2858.6,2858.4,0.452]
[1764550080557,0.002,2858.6,2857.1,3.9520525]
[1764550080558,0.846,2858.5,2857.1,3.9520525]
[1764550080859,0.347,2857.9,2857.0,0.1714]
[1764550081069,3.50023865,2858.6,2857.1,0.03500052]
[1764550081284,0.84902387,2858.5,2855.9,1.05108077]
[1764550081472,0.347,2857.2,2856.0,0.035014]
[1764550081774,0.347,2856.9,2856.0,0.487014]
[1764550081989,0.0008,2856.8,2855.6,0.1785]
[1764550082162,0.347,2856.2,2855.7,0.03501768]
[1764550082357,0.347,2856.2,2855.5,0.001]
[1764550082557,0.347,2855.9,2855.5,0.001]
[1764550082773,0.347,2855.6,2855.5,0.001]
[1764550083060,3.84889102,2855.6,2855.5,0.001]
[1764550083256,0.72559411,2855.5,2853.2,0.5727]
[1764550083491,0.5316,2855.1,2853.2,0.5727]
[1764550083861,0.6836,2855.1,2853.2,0.5727]
[1764550084059,0.347,2854.1,2853.7,0.03504222]
[1764550084271,10.95084919,2855.6,2853.7,0.03504222]
[1764550084272,0.347,2855.0,2853.7,0.48704222]
[1764550084506,0.347,2854.7,2853.8,0.64702866]
[1764550084708,1.17069953,2855.4,2853.9,0.03503977]
[1764550084995,3.50238161,2855.2,2853.9,0.48703977]
[1764550085170,0.347,2855.0,2853.9,0.48703977]
[1764550085380,0.347,2854.4,2853.9,3.9558888]
[1764550085587,0.347,2854.4,2854.0,0.39558888]
[1764550085795,3.50226258,2855.3,2854.0,0.39558888]
[1764550086062,0.1846,2855.8,2854.1,0.48703731]
[1764550086275,0.347,2855.8,2854.1,5.75533865]
[1764550086464,0.347,2855.4,2854.2,0.237]
[1764550086667,0.1846,2855.9,2854.3,0.03503485]
[1764550086668,0.499,2855.8,2854.3,0.03503485]
[1764550086966,0.347,2855.3,2854.1,3.50373147]
[1764550087280,3.50176839,2855.7,2854.2,0.03503608]
[1764550087281,0.347,2855.2,2854.2,0.03503608]
[1764550087594,0.347,2854.9,2854.1,0.03503731]
[1764550087790,1.17064251,2855.5,2853.9,0.452]
[1764550087991,0.347,2854.7,2854.0,0.74601878]
[1764550088690,0.347,2855.5,2854.6,0.1734]
[1764550088897,3.50096194,2856.4,2854.7,0.27202995]
[1764550088898,0.347,2856.0,2854.7,0.27202995]
[1764550089087,3.50148325,2856.0,2854.8,3.95487235]
[1764550089284,0.347,2855.8,2854.8,7.4577447]
[1764550089488,0.347,2856.1,2854.9,1.22147447]
[1764550089784,0.347,2855.7,2854.9,1.22147447]
[1764550089964,0.347,2856.0,2854.9,0.76947447]
[1764550090164,0.347,2855.6,2854.9,0.76947447]
[1764550090364,4.00004406,2856.3,2854.9,0.76947447]
[1764550090365,1.22459411,2856.2,2854.9,0.76947447]
[1764550090579,1.22459411,2856.2,2854.6,0.1734]
[1764550090580,0.347,2855.2,2854.6,0.1734]
[1764550090780,1.17064559,2856.1,2854.2,0.237]
[1764550091003,1.17064559,2856.1,2854.0,4.7018124]
[1764550091004,0.1846,2855.5,2854.0,4.7018124]
[1764550091202,10.5064089,2855.4,2854.0,0.74601878]
[1764550091507,0.347,2854.7,2853.7,0.237]
[1764550091675,0.499,2855.9,2854.1,4.97469799]
[1764550091876,0.347,2855.6,2854.1,5.30333865]
[1764550092075,2.83530804,2857.5,2854.6,4.97469799]
[1764550092289,7.18614378,2856.6,2854.8,0.32864066]
[1764550092487,7.18614378,2856.6,2854.9,0.27202749]
[1764550092488,0.347,2855.8,2854.9,0.27202749]
[1764550092688,0.347,2856.0,2855.2,4.97469799]
[1764550092889,0.347,2856.0,2855.9,0.1785]
[1764550093090,0.347,2856.0,2854.7,0.1734]
[1764550093091,0.499,2856.0,2854.7,0.1734]
[1764550093278,0.1846,2856.6,2854.8,0.33202872]
[1764550093481,0.347,2856.0,2854.9,0.77484188]
[1764550093681,0.347,2856.0,2855.0,0.238]
[1764550093877,0.1846,2857.1,2855.4,4.97469799]
[1764550094093,0.1846,2857.1,2855.5,0.03502013]
[1764550094291,0.347,2856.3,2855.1,0.297]
[1764550094533,0.499,2857.0,2855.1,0.297]
[1764550094810,0.347,2856.3,2855.2,0.03502381]
[1764550095108,0.499,2857.0,2855.4,7.0042726]
[1764550095299,0.347,2856.6,2855.5,1.23076113]
[1764550095499,0.347,2856.6,2855.5,1.52776113]
[1764550095696,0.347,2856.6,2855.6,0.297]
[1764550095885,0.347,2856.6,2855.5,1.23076113]
[1764550096085,7.49950224,2857.0,2855.0,0.644504]
[1764550096086,0.347,2856.9,2855.6,0.297]
[1764550096285,0.347,2856.3,2855.6,0.297]
[1764550096498,0.347,2856.3,2855.3,0.297]
[1764550096902,0.347,2856.3,2855.1,10.50751287]
[1764550097103,7.18450086,2858.0,2855.7,0.32864066]
[1764550097307,7.18450086,2858.0,2855.4,14.0085452]
[1764550097308,0.347,2857.1,2855.9,0.405504]
[1764550097493,0.002,2858.0,2856.5,1.13109811]
[1764550097691,0.002,2858.0,2857.9,0.1236]
[1764550098118,0.002,2858.0,2857.9,0.4206]
[1764550098915,0.002,2858.0,2857.9,0.6586]
[1764550099093,0.002,2858.0,2857.9,3.86067274]
[1764550099294,0.002,2858.0,2857.9,4.89366034]
[1764550099701,1.7043478,2858.9,2858.6,0.060946]
[1764550100125,5.20220002,2858.9,2858.6,0.060946]
[1764550100422,1.7043478,2858.9,2858.6,0.060946]
[1764550101125,3.49797117,2858.8,2858.6,0.060946]
[1764550101323,3.84485206,2858.9,2858.6,0.060946]
[1764550101324,0.347,2858.7,2858.6,0.060946]
[1764550101712,0.8045,2858.7,2858.6,0.060946]
[1764550101924,0.347,2858.2,2856.8,7.53578905]
[1764550102106,0.4575,2858.7,2856.5,0.238]
[1764550102107,0.4575,2858.6,2856.5,0.238]
[1764550102298,0.4575,2858.6,2856.6,0.03500665]
[1764550102299,0.347,2857.9,2856.6,0.03500665]
[1764550102495,0.347,2857.9,2856.6,0.3579]
[1764550102728,0.347,2857.9,2856.6,0.39290665]
[1764550103034,0.347,2857.9,2856.6,0.68654066]
[1764550103215,0.347,2857.9,2856.7,3.50054258]
[1764550103394,0.347,2857.9,2856.8,0.45371252]
[1764550103590,0.347,2857.9,2856.8,0.81161252]
[1764550103816,0.72559411,2859.1,2856.8,0.81161252]
[1764550103817,3.95385215,2858.9,2857.0,0.405504]
[1764550104016,3.95385215,2858.9,2857.8,0.1236]
[1764550104017,0.347,2858.9,2857.8,0.1236]
[1764550104427,3.49762391,2859.1,2857.8,0.1236]
[1764550104633,0.347,2859.0,2857.8,0.81014066]
[1764550104963,0.347,2859.0,2857.9,0.237]
[1764550105094,0.73144818,2859.0,2857.9,0.237]
[1764550105293,0.73144818,2859.0,2858.0,6.99790062]
[1764550105527,0.8029,2859.3,2858.0,7.23220062]
[1764550105765,0.347,2858.9,2858.0,7.23220062]
[1764550106049,7.79764474,2859.3,2858.0,0.2343]
[1764550106261,3.84437237,2859.3,2858.0,0.2343]
[1764550106550,3.84437645,2859.3,2858.0,0.2343]
[1764550106749,0.347,2859.4,2858.1,1.09684729]
[1764550107056,7.5259951,2859.5,2858.1,1.09684729]
[1764550107267,0.347,2859.2,2858.2,6.99741094]
[1764550107570,4.13769755,2859.5,2857.8,0.237]
[1764550107571,0.347,2859.0,2857.8,0.237]
[1764550107856,10.67619265,2859.5,2858.0,0.32864066]
[1764550107857,4.02883066,2859.5,2858.0,0.32864066]
[1764550108025,7.52606132,2859.5,2858.0,0.32864066]
[1764550108216,0.347,2859.2,2858.1,0.2343]
[1764550108553,0.347,2859.6,2858.1,0.2343]
[1764550108752,3.49658335,2860.0,2858.5,0.32864066]
[1764550108915,0.347,2859.8,2858.6,0.237]
[1764550109241,0.347,2859.8,2858.8,6.99594234]
[1764550109456,0.347,2859.7,2858.7,0.237]
[1764550109668,7.87270579,2859.8,2858.2,0.0609]
[1764550109669,7.87270579,2859.8,2858.5,3.49832]
[1764550109824,7.87270579,2859.8,2858.5,6.99665828]
[1764550109825,0.38436914,2859.8,2858.5,6.99665828]
[1764550110149,0.347,2860.0,2858.6,0.2343]
[1764550110348,0.347,2859.9,2858.6,0.2343]
[1764550110563,0.5408,2859.9,2858.7,0.237]
[1764550110854,0.1938,2859.9,2858.7,0.237]
[1764550111225,0.1938,2859.9,2858.8,6.99594234]
[1764550111441,4.09423609,2859.9,2858.8,6.99594234]
[1764550111647,4.09420192,2859.9,2858.8,3.49797117]
[1764550111831,4.09420192,2859.9,2858.8,7.03092205]
[1764550112031,0.59753661,2859.9,2858.8,0.405504]
[1764550112232,6.99154022,2860.6,2858.9,0.2343]
[1764550112432,0.347,2860.6,2859.2,0.32864066]
[1764550112855,0.002,2860.7,2859.3,0.2343]
[1764550113084,0.002,2860.7,2859.4,5.38020199]
[1764550113265,0.002,2860.7,2859.8,6.99349604]
[1764550113429,0.002,2860.7,2859.8,10.49024406]
[1764550113739,0.002,2860.7,2859.9,0.2343]
[1764550114537,0.002,2860.7,2859.9,0.237]
[1764550114767,0.347,2860.5,2859.3,0.237]
[1764550114938,0.4948,2860.6,2858.8,0.2343]
[1764550115142,0.4948,2860.6,2858.3,6.99709315]
[1764550115143,0.4948,2860.5,2858.3,7.32573381]
[1764550115363,0.4948,2860.5,2858.1,3.73308354]
[1764550115364,3.49723718,2859.4,2858.4,4.47411587]
[1764550115679,0.347,2859.5,2857.8,0.2343]
[1764550115680,7.341293,2859.5,2857.8,0.2343]
[1764550115827,0.347,2859.2,2858.1,0.237]
[1764550116028,0.347,2859.2,2858.2,3.55956138]
[1764550116562,0.347,2859.2,2858.3,0.27198583]
[1764550117068,0.1938,2858.4,2857.0,6.203463]
[1764550117273,0.72559411,2858.9,2857.2,3.49993]
[1764550117457,0.4948,2858.8,2857.3,0.03499807]
[1764550117763,0.347,2858.7,2857.5,0.32864066]
[1764550117965,0.4948,2858.8,2857.6,0.2719944]
[1764550118372,0.347,2858.9,2857.6,0.2719944]
[1764550118565,6.99529698,2859.1,2857.6,0.5412944]
[1764550118764,7.34229698,2859.1,2857.8,0.32864066]
[1764550118971,7.34229698,2859.1,2857.9,0.03499072]
[1764550119166,6.99529698,2859.1,2857.9,0.13089072]
[1764550119370,0.347,2859.4,2858.0,6.99790062]
[1764550119670,3.49707106,2859.6,2858.1,0.03498827]
[1764550119873,3.49632254,2860.2,2858.3,3.405264]
[1764550119874,0.347,2860.1,2858.3,3.405264]
[1764550120036,0.4948,2860.2,2858.9,0.32864066]
[1764550120233,0.4948,2860.2,2859.0,0.27197726]
[1764550120234,0.347,2860.1,2859.0,0.27197726]
[1764550120467,0.347,2860.1,2859.0,0.237]
[1764550120769,3.99107456,2860.2,2859.0,0.237]
[1764550120770,7.48734912,2860.2,2859.0,0.237]
[1764550120972,7.48734912,2860.2,2858.2,2.62614286]
[1764550120973,0.8418,2860.1,2858.2,2.62614286]
[1764550121158,0.347,2859.7,2858.3,0.59794066]
[1764550121362,0.52978583,2860.1,2858.4,7.26890594]
[1764550121363,3.49662575,2859.9,2858.4,7.26890594]
[1764550121567,10.52486308,2859.9,2857.9,0.82149411]
[1764550121763,0.52978583,2859.8,2858.5,0.237]
[1764550121972,0.347,2859.3,2858.5,0.237]
[1764550122275,0.347,2859.3,2858.0,7.26720062]
[1764550122276,0.347,2859.0,2858.6,0.03498215]
[1764550122458,0.347,2859.0,2858.3,0.03498583]
[1764550122968,0.347,2858.7,2858.0,0.237]
[1764550123444,3.84510284,2858.7,2858.0,0.237]
[1764550123645,0.347,2858.7,2858.0,3.73590916]
[1764550123857,0.347,2858.7,2858.0,4.11909008]
[1764550124071,3.84515921,2858.7,2858.0,0.38318092]
[1764550124375,0.1938,2859.4,2858.1,0.03498827]
[1764550124679,0.1938,2859.5,2858.1,0.30428827]
[1764550124885,0.1938,2859.5,2858.1,0.2693]
[1764550125175,0.1938,2859.5,2858.3,0.32864066]
[1764550125377,3.84446534,2859.3,2858.4,0.0349846]
[1764550125589,0.03498583,2859.7,2858.4,7.0318828]
[1764550125750,6.99379296,2859.7,2858.5,0.70318828]
[1764550126075,0.03498583,2859.6,2858.6,0.03498215]
[1764550126277,1.06031757,2859.6,2858.6,0.03498215]
[1764550126575,1.06031757,2859.6,2858.5,0.237]
[1764550126576,0.347,2859.6,2858.5,0.237]
[1764550126875,0.4948,2859.6,2858.5,0.237]
[1764550127075,0.8418,2859.6,2858.5,0.237]
[1764550127279,1.52126704,2859.6,2858.6,0.40641013]
[1764550127481,3.49711488,2859.5,2858.6,6.9964318]
[1764550127676,3.49711488,2859.5,2858.6,3.4982159]
[1764550127677,6.99422976,2859.5,2858.6,3.4982159]
[1764550127882,3.49711488,2859.5,2858.6,6.9964318]
[1764550128108,0.8418,2859.6,2858.7,0.03498093]